Workbook

Sheet Для заполнения
A1: Форма перечня спортивной инфраструктуры всех форм собственности, независимо от их организационно-правовой формы, действующие и находящиеся на реконструкции или капитальном ремонте, отдельно стоящие или входящие в состав комплексных сооружений
A2: (информация о спортивной инфраструктуре, их площади, ЕПС, ФЗ и МС должна соответствовать сведениям, указанным в разделе 3 формы № 1 –ФК)
A4: № п/п | B4: Наименование спортивного сооружения с указанием принадлежности | C4: Адрес спортивного сооружения | D4: длина | E4: ширина | F4: Площадь спортивного сооружения, м2 (указывается площадь спортивных залов, плоскостных спортивных сооружений, площадь зеркала воды плавательных бассейнов) | G4: Единовременная пропускная способность (ЕПС) | H4: Загруженность (ФЗ), чел. | I4: мощность (МС), чел | J4: собственность (муниципальная, региональная, федеральная, иная
A5: СПОРТИВНЫЕ ЗАЛЫ
A6: 1 | B6: "Зал бокса" при МАУ "Спортивная школа" | C6: 618250, Пермский край, ул.им.газ. "Правда" 38а | D6: 23.55 | E6: 11.65 | F6: =D6*E6 -> 274.3575 | G6: 15 | H6: =(45*3*2+15*6*2+25*2.5*6)*(52-13) -> 32175 | I6: =15*8*(365-90) -> 33000 | J6: муниципальная | K6: =H6/I6*100 -> 97.5 | L6: минус 3 мес карантина
A7: КРЫТЫЕ ЛЕДОВЫЕ КАТКИ
A8: 2 | B8: "Ледовая Арена" при МАУ "Спортивная школа" | C8: 61825, Пермский край, г. Губаха, пер. Мечты, 3 | D8: 56 | E8: 28 | F8: =D8*E8 -> 1568 | G8: =(80+30+30+8)/4 -> 37 | H8: =1949*(52-13) -> 76011 | I8: =G8*11*(365-90) -> 111925 | J8: муниципальная | K8: =H8/I8*100 -> 67.91244137 | L8: минус 3 мес карантина
A9: ДРУГИЕ
A10: 3 | B10: Помещение для занятий ОФП при МАУ "Спортивная школа" | C10: 618250, Пермский край, пр. Ленина 63 | D10: 14.16 | E10: 5.5 | F10: =D10*E10 -> 77.88 | G10: 12 | H10: =70*1*6*(52-13) -> 16380 | I10: =G10*6*(365-90) -> 19800 | J10: муниципальная | K10: 82.72727273 | L10: минус 3 мес карантина
A11: 4 | B11: Помещение для занятий ОФП при МАУ "Спортивная школа" | C11: 618250, Пермский край, пр. Ленина 63 | D11: 16.68 | E11: 5.5 | F11: =D11*E11 -> 91.74 | G11: 12 | H11: =70*1*6*(52-13) -> 16380 | I11: =G11*6*(365-90) -> 19800 | J11: муниципальная | K11: 82.72727273 | L11: минус 3 мес карантина
A12: 5 | B12: Помещение для занятий на силовых тренажерах при МАУ "Спортивная школа" | C12: 618250, Пермский край, пр. Ленина 63 | D12: 11.68 | E12: 5.51 | F12: 64.3568 | G12: 18 | H12: =20*2*7*(52-13) -> 10920 | I12: =G12*4*(365-52-90) -> 16056 | J12: муниципальная | K12: 68.01195815 | L12: минус 3 мес карантина
A13: ОБЪЕКТЫ ГОРОДСКОЙ И РЕКРЕАЦИОННОЙ ИНФРАСТРУКТУРЫ, ПРИСПОСОБЛЕННЫЕ ДЛЯ ЗАНЯТИЙ ФИЗИЧЕСКОЙ КУЛЬТУРОЙ И СПОРТОМ
A14: 6 | B14: Уличная площадка для занятий физической культурой при Ледовой арене | C14: 61825, Пермский край, г. Губаха, пер. Мечты, 3 | D14: 6 | E14: 5.5 | F14: =D14*E14 -> 33 | G14: 17 | H14: =30*2*7*(52-13) -> 16380 | I14: =17*8*(365-90) -> 37400 | J14: муниципальная | K14: =H14/I14*100 -> 43.79679144 | L14: минус 3 мес карантина
A15: 7 | B15: Уличная площадка для занятий физической культурой при зале бокса | C15: 618250, Пермский край, ул.им.газ. "Правда" 38а | D15: 15 | E15: 10 | F15: =D15*E15 -> 150 | G15: 17 | H15: =30*2*7*(52-13) -> 16380 | I15: =17*8*(365-90) -> 37400 | J15: муниципальная | K15: 43.79679144 | L15: минус 3 мес карантина
A16: ИТОГО | F16: =F6+F8+F10+F11+F12 -> 2076.3343 | G16: =G6+G8+G10+G11+G12 -> 94 | H16: 151866 | I16: 200581 | K16: 75.71305358
B17: Директор МАУ "Спортивная школа" | E17: К.В. Макаров
B18: (должность) | E18: (Ф.И.О.) | H18: (подпись)
A20: ФИО исполнителя, телефон (с кодом) | D20: Мажитова И.Р. 8-34-248-333-07

Sheet Для заполнения 2
A1: Крупные спортивные объекты на территории Губахинского городского округа Пермского края
A4: № п/п | B4: Наименование спортивного сооружения с указанием принадлежности | C4: Адрес спортивного сооружения | D4: Единовременная пропускная способность (ЕПС) | E4: собственность (муниципальная, региональная, федеральная, иная | F4: Состояние объекта (удовлетворительное, аварийное, отличное) | G4: Дата ввода объекта и дата последней реконструкции объекта | H4: Категория опасности (в соотвествии с паспортом безопасности) | I4: Дата утверждения паспорта безопасности | J4: Доступная среда для маломобильных категорий населения (обеспеченность объекта спорта необходимым инвентарем оборудованием, наличие пандуса) | K4: Включение объекта во Всероссийский реестр объектов сопрта(указать дату включения) | L4: Контактные данные руководителя объекта ( номер телефона, эл. почта)
A5: КРЫТЫЕ КАТКИ
A6: 1 | B6: ледовая арена | C6: 61825, Пермский край, г. Губаха, пер. Мечты, 3 | D6: =(80+30+30+8)/4 -> 37 | E6: муниципальная | F6: отличное | G6: 2019-04-18 | H6: 2 категория | I6: 2019-06-10 | J6: доступна для моломобильных групп, пандус имеется | K6: 2019-10-08 | L6: 8-34-24-457-02, 40675@dk.ru
A7: ИТОГО
B10: Директор МАУ "Спортивная школа" | E10: К.В. Макаров
B11: (должность) | E11: (Ф.И.О.) | H11: (подпись)
A15: ФИО исполнителя, телефон (с кодом) | D15: Мажитова И.Р. 8-34-248-333-07

Sheet Лист3
